Cogmind - Beta 11 @@@ ROGUE MODE // 2022.04.18 @ 20:22:53 Player: Red Box Result: Destroyed by D-53 Grenadier with Mini Grenade Launcher Performance ------------- Evolutions (1) 500 Regions Visited (4) 800 Robots Destroyed (60) 300 Value Destroyed (1401) 1401 Prototype IDs (13) 260 Alien Tech Used (0) 0 Bonus (-174) -174 TOTAL SCORE: 3087 Bonus ------- Friendly Fire -174 Cogmind --------- Core Integrity 0/400 Matter 266/300 Energy 36/100 System Corruption 4% Temperature Cool (0) Movement Core (800) Ox15 Location -9/Mines Parts ------- > --- POWER (1) -------- (None) > --- PROPULSION (2) --- (None) > --- UTILITY (3) ------ Improved Heat Sink High-capacity Storage Unit > --- WEAPON (3) ------- EM Pulse Cannon > --- INVENTORY (20) --- Cooled Ion Engine Armored Wheel Armored Wheel Armored Wheel Armored Wheel Armored Wheel High-capacity Battery (250) Improved Utility Shielding Heavy Armor Plating Heavy Armor Plating Authchip [R/Combat] Heavy EM Pulse Gun Heavy EM Shotgun EM Pulse Cannon EM Pulse Cannon EM Pulse Cannon Flail Peak State ------------ > --- POWER ------------ Heavy Ion Engine > --- PROPULSION ------- Wheel Compact Wheel > --- UTILITY ---------- High-capacity Storage Unit Improved Targeting Computer Hacking Suite > --- WEAPON ----------- Heavy EM Pulse Gun Heavy EM Pulse Gun Heavy EM Pulse Gun > --- INVENTORY -------- Cooled Ion Engine Compact Wheel Armored Wheel Armored Wheel Armored Wheel Armored Wheel Improved Heat Sink High-capacity Battery Improved Utility Shielding Medium Armor Plating Heavy Armor Plating Authchip [R/Combat] Heavy EM Shotgun EM Pulse Cannon EM Pulse Cannon EM Pulse Cannon EM Pulse Cannon Grenade Launcher Flail [Rating: 22] Favorites ----------- Power Ion Engine Engine Ion Engine Propulsion Wheel Leg Aluminum Leg Wheel Wheel Utility High-capacity Storage Unit Device Improved Terrain Scanner Storage High-capacity Storage Unit Processor Improved Targeting Computer Hackware Hacking Suite Protection Light Armor Plating Weapon Heavy Assault Rifle Energy Gun Heavy EM Pulse Gun Energy Cannon EM Pulse Cannon Ballistic Gun Heavy Assault Rifle Launcher Grenade Launcher Special Weapon Mining Laser Build | -11 -10 -10 -9 -9 ------- Run | Scr Mat Min Mat Min Slots Evolved 2 | . . . 2 . Power . | . . . . . Propulsion . | . . . . . Utility 1 | . . . 1 . Weapon 1 | . . . 1 . Parts Attached 58 | 7 20 5 24 2 Power 7 | 1 1 2 3 . Engine 7 | 1 1 2 3 . Core . | . . . . . Reactor . | . . . . . Propulsion 11 | 2 4 . 5 . Treads . | . . . . . Leg 3 | 2 1 . . . Wheel 8 | . 3 . 5 . Hover . | . . . . . Flight . | . . . . . Utility 15 | 2 5 1 7 . Device 6 | 1 3 . 2 . Storage 3 | 1 2 . . . Processor 2 | . . 1 1 . Hackware 1 | . . . 1 . Protection 3 | . . . 3 . Artifact . | . . . . . Weapon 25 | 2 10 2 9 2 Energy Gun 11 | 1 6 . 4 . Energy Cannon 1 | . . . . 1 Ballistic Gun 9 | 1 2 1 5 . Ballistic Cannon . | . . . . . Launcher 3 | . 1 1 . 1 Special Weapon 1 | . 1 . . . Impact Weapon . | . . . . . Slashing Weapon . | . . . . . Piercing Weapon . | . . . . . Special Melee Weapon . | . . . . . Unidentified Prototypes . | . . . . . Parts Lost 16 | . 2 1 6 7 Power 3 | . 1 1 . 1 Propulsion 5 | . . . 3 2 Utility 2 | . . . 1 1 Weapon 6 | . 1 . 2 3 Highest Loss Streak 7 | . 1 1 1 7 To Critical Strikes . | . . . . . Average Slot Usage (%) 98 | . 99 95 98 55 Engine 12 | . 13 9 11 5 Leg 9 | . 22 . . . Wheel 14 | . 5 28 20 11 Device 6 | . 14 . . 11 Storage 12 | . 14 14 11 11 Processor 6 | . . 13 11 5 Hackware 1 | . . . 2 . Protection 3 | . . . 7 . Energy Gun 15 | . 21 . 13 5 Ballistic Gun 13 | . 3 27 19 . Special Weapon 1 | . 2 . . . Naked Turns . | . . . . . Heaviest Build 64 | 14 52 51 64 58 Greatest Support 32 | 20 20 20 32 32 Greatest Overweight (x) 5 | 1 2 2 5 1 Average Overweight (x) 2 | . 1 2 2 1 Largest Inventory Capacity 20 | 8 20 20 20 20 Average Capacity 17 | 7 15 20 20 20 Most Carried 20 | 8 20 20 20 20 Average Carried 17 | 6 14 19 19 19 Final Capacity 20 | 8 20 20 20 20 Final Carried 20 | 8 20 20 20 19 Class Distribution -------------------- 47% | Gunner 38% | Mutant 13% | Scavenger-Mutant Dominant Class ---------------- Mutant | -10/Materials Mutant | -10/Mines Gunner | -9/Materials Gunner | -9/Mines Resources | -11 -10 -10 -9 -9 ----------- Run | Scr Mat Min Mat Min Matter Collected 1475 | 291 229 125 830 . Remotely . | . . . . . Salvage Created 2233 | 201 410 83 1473 66 Parts 136 | 8 24 5 98 1 Haulers Intercepted 7 | . 2 . 5 . Recyclers Shooed 1 | . . . 1 . Parts Field Recycled . | . . . . . Retrieved Matter . | . . . . . Parts Self-Destructed . | . . . . . Prevented . | . . . . . Kills | -11 -10 -10 -9 -9 ------- Run | Scr Mat Min Mat Min Combat Hostiles Destroyed 50 | . 8 3 27 12 Guns 33 | . 4 2 27 . AOE 17 | . 4 1 . 12 Classes Destroyed 12 | 2 4 . 4 2 Worker 1 | . . . 1 . Tunneler 4 | 4 . . . . Hauler 7 | . 2 . 5 . Recycler 1 | 1 . . . . Operator 1 | . . . 1 . Watcher 7 | . 2 . 5 . Swarmer 10 | . 3 . 7 . Grunt 16 | . 5 2 9 . Brawler 2 | . . . 2 . Sentry 9 | . . . 9 . Assembled 12 | . . . . 12 Guerrilla 1 | . . . . 1 Best Kill Streak 12 | 3 3 2 4 12 Combat Bots Only 12 | . 3 2 4 12 Max Kills in Single Turn 5 | 1 3 1 2 5 Gunslinging 1 | . . . 1 . Exploded 4 | . 3 1 . 4 Melee . | . . . . . Uniques/NPCs Destroyed 1 | . . 1 . . YI-UF0 (-10/Mines) Combat | -11 -10 -10 -9 -9 -------- Run | Scr Mat Min Mat Min Damage Taken 2236 | . 420 382 875 559 Core 631 | . 92 130 173 236 Absorbed by Shields . | . . . . . Regen/Repaired (Parts) 36 | . 36 . . . Core Remaining (%) 55 | 100 . 11 . . Volleys Fired 147 | 21 32 11 78 5 Largest 3 | 2 2 2 3 3 Hottest 135 | 60 115 53 135 120 Shots Fired 365 | 42 61 22 232 8 Gun 355 | 42 58 20 232 3 Cannon 1 | . . . . 1 Launcher 7 | . 1 2 . 4 Special 2 | . 2 . . . Kinetic 270 | 21 24 20 205 . Thermal 18 | . 18 . . . Explosive 7 | . 1 2 . 4 Electromagnetic 70 | 21 18 . 27 4 Robot Hit Streak 13 | 7 5 9 13 2 Robot Miss Streak 5 | 4 5 1 3 1 Penetration Max . | . . . . . Secondary Targets 4 | . . . 4 . Max Gunslinging Chain 1 | . . . 1 . Shots Hit Robots 222 | 22 35 18 144 3 Core Hits 119 | 8 18 7 57 29 Critical Kills 1 | . . . 1 . Critical Parts Destroyed . | . . . . . Critical Strikes 3 | . 1 . 2 . Burn 1 | . 1 . . . Destroy 1 | . . . 1 . Corrupt 1 | . . . 1 . Melee Attacks . | . . . . . Impact . | . . . . . Slashing . | . . . . . Piercing . | . . . . . Sneak Attacks . | . . . . . Combat Hostiles . | . . . . . Follow-up Attacks . | . . . . . Damage Inflicted 4542 | 263 551 360 2282 1086 Guns 3160 | 263 379 236 2282 . Cannons . | . . . . . Explosions 1382 | . 172 124 . 1086 Melee . | . . . . . Ramming . | . . . . . Kinetic 2529 | 86 135 236 2072 . Thermal 208 | . 208 . . . Explosive 1311 | . 101 124 . 1086 Electromagnetic 494 | 177 107 . 210 . Impact . | . . . . . Slashing . | . . . . . Piercing . | . . . . . Highest Corruption 4 | . . . . 4 Average Corruption 4 | . . . . 4 Corruption Purged . | . . . . . Corruption Blocked . | . . . . . Effects 1 | . . . . 1 Matter Fused 1 | . . . . 1 Overload Shots . | . . . . . Overflow Damage 65 | . 28 . . 37 Projectiles . | . . . . . Explosions 65 | . 28 . . 37 Melee . | . . . . . Knockbacks . | . . . . . Impact . | . . . . . Kinetic . | . . . . . Secondary . | . . . . . Self-Inflicted Damage 109 | . 19 . . 90 Shots 5 | . 1 . . 4 Rammed . | . . . . . Targets Rammed . | . . . . . Kicked . | . . . . . Crushed . | . . . . . Highest Temperature 272 | 40 89 4 272 6 Average Temperature 34 | 22 26 4 39 3 Received Heat Transfer 601 | . 189 45 327 40 Siege Activations . | . . . . . Robots Corrupted . | . . . . . Combat Hostiles . | . . . . . Parts Fried 7 | 1 5 . 1 . Impact Corruptions . | . . . . . Robots Melted . | . . . . . Combat Hostiles . | . . . . . Parts Melted . | . . . . . Heat Transferred 494 | . 494 . . . Parts Sabotaged . | . . . . . Parts Stolen . | . . . . . Parts Stripped . | . . . . . Power Chain Reactions 1 | . 1 . . . Missiles Intercepted . | . . . . . Alert | -11 -10 -10 -9 -9 ------- Run | Scr Mat Min Mat Min Peak Influence 355 | 25 355 80 313 47 Initial 16 | . 16 . . 5 Average 69 | 12 70 49 76 29 Maximum Alert Level 1 | . 1 . 1 . Low Security (%) 91 | 100 94 100 86 100 Level 1 8 | . 5 . 13 . Level 2 . | . . . . . Level 3 . | . . . . . Level 4 . | . . . . . Level 5 . | . . . . . High Security . | . . . . . Max Security . | . . . . . Squads Dispatched 2 | . 1 . 1 . Investigation . | . . . . . Extermination . | . . . . . Reinforcement 2 | . 1 . 1 . Assault . | . . . . . Garrison . | . . . . . Intercept . | . . . . . Searches Triggered . | . . . . . Construction Impeded . | . . . . . Haulers Reinforced . | . . . . . Active Scanning Responses . | . . . . . Cargo Convoy Interrupts . | . . . . . Stealth | -11 -10 -10 -9 -9 --------- Run | Scr Mat Min Mat Min Distress Signals 3 | . 1 . 2 . Communications Jammed . | . . . . . Distress Signals . | . . . . . Times Spotted 82 | . 18 4 38 22 Peak Tracking Total 19 | . 3 2 5 19 Tactical Retreats 2 | . 1 . . 1 Traps | -11 -10 -10 -9 -9 ------- Run | Scr Mat Min Mat Min Traps Triggered 2 | . . . 2 . Indirectly . | . . . . . Trap Hack Attempts . | . . . . . Triggered . | . . . . . Disarmed . | . . . . . Reprogrammed 4 | . 4 . . . Reused 1 | . 1 . . . Traps Extracted . | . . . . . Installed . | . . . . . Triggered 2 | . 1 1 . . Machines | -11 -10 -10 -9 -9 ---------- Run | Scr Mat Min Mat Min Machines Disabled 5 | . 5 . . . Max in Single Turn 1 | . 1 . . . Machines Sabotaged . | . . . . . Garrisons Compromised . | . . . . . Overloaded Fab Kills . | . . . . . Hacking | -11 -10 -10 -9 -9 --------- Run | Scr Mat Min Mat Min Machines Accessed 24 | . 10 . 14 . Terminals 18 | . 7 . 11 . Fabricators . | . . . . . Repair Stations 1 | . 1 . . . Recycling Units 3 | . 2 . 1 . Scanalyzers 2 | . . . 2 . Garrison Access . | . . . . . Total Hacks 96 | . 33 . 63 . Successful 67 | . 21 . 46 . Failed 28 | . 12 . 16 . Catastrophic 2 | . 1 . 1 . Database Lockouts 1 | . . . 1 . Manual 43 | . 14 . 29 . Terminals 64 | . 21 . 43 . Fabricators . | . . . . . Repair Stations 6 | . 6 . . . Recycling Units 12 | . 6 . 6 . Scanalyzers 14 | . . . 14 . Garrison Access . | . . . . . Terminal Hacks 23 | . 7 . 16 . Robot Analysis 4 | . 2 . 2 . Prototype ID Bank 8 | . 1 . 7 . Branch Access Points 1 | . . . 1 . Terminal Index 1 | . . . 1 . Unreport Threat 2 | . . . 2 . Locate Traps 2 | . 1 . 1 . Reprogram Traps 2 | . 2 . . . Hauler Manifests 1 | . . . 1 . Registered Components 1 | . . . 1 . Zone Layout 1 | . 1 . . . Fabricator Hacks . | . . . . . Repair Station Hacks 6 | . 6 . . . Scan Component 3 | . 3 . . . Repair 3 | . 3 . . . Recycling Unit Hacks 3 | . 2 . 1 . Retrieve Components 3 | . 2 . 1 . Scanalyzer 14 | . . . 14 . Insert Component 5 | . . . 5 . Analyze 9 | . . . 9 . Garrison Access Hacks . | . . . . . Unauthorized Hacks 21 | . 6 . 15 . Terminals 15 | . 4 . 11 . Track 5 | . 2 . 3 . Assimilate 3 | . 1 . 2 . Botnet 5 | . . . 5 . Operators 2 | . 1 . 1 . Fabricators . | . . . . . Repair Stations . | . . . . . Recycling Units 6 | . 2 . 4 . Monitor 1 | . . . 1 . Reject 3 | . 2 . 1 . Recyclers 1 | . . . 1 . Mask 1 | . . . 1 . Scanalyzers . | . . . . . Garrison Access . | . . . . . Data Cores Recovered 1 | . . . 1 . Used 1 | . . . 1 . Hacking Detections 23 | . 9 . 14 . Full Trace Events 1 | . . . 1 . Feedback Events . | . . . . . Feedback Blocked . | . . . . . Robot Schematics Acquired . | . . . . . Robots Built . | . . . . . Authchips . | . . . . . Time . | . . . . . Total Robot Build Rating . | . . . . . Part Schematics Acquired 5 | . . . 5 . Parts Built . | . . . . . Authchips . | . . . . . Time . | . . . . . Total Part Build Rating . | . . . . . Parts Repaired 3 | . 3 . . . Time 96 | . 96 . . . Parts Recycled . | . . . . . Recycled Matter . | . . . . . Retrieved Matter . | . . . . . Retrieved Components 9 | . 5 . 4 . Parts Scanalyzed 5 | . . . 5 . Part Schematics Acquired 5 | . . . 5 . Parts Damaged . | . . . . . Bothacking | -11 -10 -10 -9 -9 ------------ Run | Scr Mat Min Mat Min Used RIF Installer . | . . . . . Robots Hacked . | . . . . . Non-combat . | . . . . . Combat . | . . . . . Robot Hacks Applied . | . . . . . Relay Couplers Released . | . . . . . Fabnet Peak Effective % . | . . . . . Robots Rewired . | . . . . . Allies Hacked . | . . . . . Hacks Repelled . | . . . . . Allies | -11 -10 -10 -9 -9 -------- Run | Scr Mat Min Mat Min Total Allies 2 | . 1 . 1 . Largest Group 1 | . 1 1 1 . Highest-Rated Group 10 | . 10 10 10 . Highest-Rated Ally 10 | . 10 10 10 . Total Orders 1 | . . 1 . . STAY 1 | . . 1 . . Ally Attacks . | . . . . . Total Damage . | . . . . . Kills . | . . . . . Allies Corrupted . | . . . . . Allies Melted . | . . . . . Intel | -11 -10 -10 -9 -9 ------- Run | Scr Mat Min Mat Min Robot Analysis Total 4 | . 2 . 2 . Derelict Logs Recovered 1 | . . 1 . . Drone Launches . | . . . . . Drone Recoveries . | . . . . . Exploration | -11 -10 -10 -9 -9 ------------- Run | Scr Mat Min Mat Min Turns Passed 6230 | 206 2472 577 2956 19 Spaces Moved 3423 | 103 941 465 1910 4 Core 5 | 5 . . . . Treads . | . . . . . Legs 742 | 98 644 . . . Wheels 2676 | . 297 465 1910 4 Hover . | . . . . . Flight . | . . . . . Fastest Speed 50 | 50 110 110 110 115 Average Speed 130 | 122 158 110 121 115 Slowest Speed 260 | 190 260 110 155 115 Overloaded Moves . | . . . . . Propulsion Burnouts . | . . . . . Robots Hopped . | . . . . . Cave-ins Triggered . | . . . . . Exploration Rate (%) 55 | 5 96 75 96 4 Regions Visited 4 Branch Regions 2 Pre-discovered Areas . | . . . . . Known Exits Taken 1 | . . . 1 . Unknown Exits Taken 3 | 1 1 1 . . Scrap Searched 1 | . . 1 . . Spaces Dug . | . . . . . Terrain Destroyed 52 | . 15 5 . 32 Melee . | . . . . . Projectile . | . . . . . AOE 52 | . 15 5 . 32 Terrain Rammed . | . . . . . Walls Destroyed . | . . . . . Machines Disabled . | . . . . . Actions | -11 -10 -10 -9 -9 --------- Run | Scr Mat Min Mat Min Total 4892 | 141 1864 508 2368 11 Wait 1165 | 3 829 18 315 . Move 3419 | 102 940 464 1909 4 Hop . | . . . . . Pick Up 60 | 8 26 5 21 . Fast Attach 18 | 7 5 1 5 . Attach 16 | . 3 . 12 1 Detach 1 | . 1 . . . Swap 24 | . 12 4 7 1 Drop 42 | . 16 5 21 . Fire 147 | 21 32 11 78 5 Melee . | . . . . . Ram . | . . . . . Kick . | . . . . . Crush . | . . . . . Escape Stasis . | . . . . . Rewire . | . . . . . Trap . | . . . . . Miscellaneous . | . . . . . Route ------- -11/Scrapyard -10/Materials (discovered 4 exits: *Mat x3 / [*Min]) -10/Mines (discovered 2 exits: *Mat / [*Exi]) -9/Materials (discovered 6 exits: [*Mat x3] / *Min x2 / *Sto) -9/Mines History --------- Turn | Location | Event 40 | -11/Scrapyard | Discovered new exit (range 15) 207 | -11/Scrapyard | Entered Materials 315 | -10/Materials | Build established: Mutant 618 | -10/Materials | Discovered new exit (range 16) 1556 | -10/Materials | Build established: Scavenger-Mutant 1770 | -10/Materials | Discovered new exit (range 16) 1972 | -10/Materials | Discovered new exit (range 7) 2045 | -10/Materials | Discovered new exit (range 13) 2413 | -10/Materials | Repaired Imp. Terrain Scanner 2413 | -10/Materials | Build established: Mutant 2440 | -10/Materials | Repaired Wheel 2474 | -10/Materials | Repaired Particle Gun 2679 | -10/Materials | Entered Mines 2679 | -10/Mines | Accompanied by 1 ally 2690 | -10/Mines | Core integrity fell below 50% 2734 | -10/Mines | Met a Derelict bent on vengeance 2767 | -10/Mines | Deemed a non-threat by the Exiles lab entrance 2767 | -10/Mines | Discovered new exit (range 5) 2814 | -10/Mines | YI-UF0 nonchalantly dropped a Grenade Launcher on the ground 2823 | -10/Mines | Discovered new exit (range 7) 2833 | -10/Mines | Joined a pair of Derelicts in attacking an 0b10 outpost 2903 | -10/Mines | Core integrity fell below 20% 2905 | -10/Mines | Destroyed YI-UF0 2968 | -10/Mines | Learned Materials emergency access door positions 3256 | -10/Mines | Entered Materials 3256 | -9/Materials | Evolved 2 slots: Utility x1, Weapon x1 3398 | -9/Materials | Identified exit to Mines 3398 | -9/Materials | Identified exit to Storage 3567 | -9/Materials | Build established: Gunner 3917 | -9/Materials | Discovered new exit (range 10) 4914 | -9/Materials | Discovered new exit (range 7) 5410 | -9/Materials | Central database locked down 5578 | -9/Materials | Discovered new exit (range 15) 6212 | -9/Materials | Entered Mines 6213 | -9/Mines | Assembled infested the area 6218 | -9/Mines | Assisted by a Guerilla fighting off Assembled 6225 | -9/Mines | Core integrity fell below 50% 6230 | -9/Mines | Core integrity fell below 20% 6231 | -9/Mines | Destroyed by D-53 Grenadier with Mini Grenade Launcher Last Messages --------------- 06223_ Imp. Targeting Computer destroyed. 06223_ System corrupted by crushing effect (+4). 06223_ HV Slug penetrates as-12168. 06223_ as-12168 knocked back. 06223_ HV Slug penetrates Wall. 06224_ System corrupted: Matter fused (-9). 06224_ as-89804 destroyed. 06224_ as-12168 destroyed. 06224_ 1Z-QM3(h) destroyed. 06224_ as-39785 destroyed. 06224_ as-24606 destroyed. 06225_ C-30 ARC bursts open, deploying its payload. 06225_ D-53 Grenadier unfolds itself. 06225_ as-18178 destroyed. 06225_ as-94857 destroyed. 06226_ as-93599 destroyed. 06227_ Cld. Ion Engine destroyed. 06227_ Grenade Launcher destroyed. 06228_ The unstable cave ceiling collapses. 06229_ Com. Wheel destroyed. Map ----- +----------------------------------------------------+ | | | | | | | ????????????????????????????????????? | | ????????????????????????????????????? | | ????????????????????????????????????? | | ????????????????????????????????????? | | ????????????????????????????????????? | | ????????????????????????????????????? | | ????????????????????????????????????? | | ????????????????????????????????????? | | ????????????????????????????????????? | | ????????????????????????????????????? | | ????????????????????????????????????? | | ????????????????????????????????????? | | ????????????????????????????????????? | | ????????????????????????????????????? | | ????????????????????????????????????? | | ????????#???????????????????????????? | | ????????# ??????????????????????????? | | ????????# ##??##????????????????????? | | ????????# ## ##???????????????????? | | ???????## % ##??????????????????? | | ????##?# d ##?????????????????? | | ???## # d #?????????????????? | | ???#; @ ##????????????????? | | ???# # #????????????????? | | ???# % #????????????????? | | ???## = ##????????????????? | | ????# < #????????????????? | | ????# # #???????????????? | | ????# ###### #???????????????? | | ????#??????### ##???????????????? | | ?????????????## ###????????????????? | | ??????????????####??????????????????? | | ????????????????????????????????????? | | ????????????????????????????????????? | | ????????????????????????????????????? | | ????????????????????????????????????? | | ????????????????????????????????????? | | ????????????????????????????????????? | | ????????????????????????????????????? | | ????????????????????????????????????? | | ????????????????????????????????????? | | ????????????????????????????????????? | | ????????????????????????????????????? | | ????????????????????????????????????? | | ????????????????????????????????????? | | ????????????????????????????????????? | | ????????????????????????????????????? | +----------------------------------------------------+ Best States ------------- Heat Dissipation 42 Energy Generation 14 Energy Capacity 280 Matter Stores 300 Matter Capacity 300 Sight Range 16 Terrain Scan Range 16 Terrain Scan Density 10 Armor Coverage 225 Evasion (%) 55 Targeting Accuracy 6 Offensive Hacking 10 Authchip Count 1 Item Schematics ----------------- Hvy. Ion Engine | -9/Materials | Scanalyzed Arm. Wheel | -9/Materials | Scanalyzed Terrain Scan Processor | -9/Materials | Scanalyzed Hvy. EM Shotgun | -9/Materials | Scanalyzed Cld. Ion Engine | -9/Materials | Scanalyzed Robot Schematics ------------------ None Fabricated ------------ Nothing Alien Tech Used ----------------- None Achievements -------------- None Challenges ------------ None Game ------ Seed ChipShadingShearcannon Manual? 0 Play Time 01:00:09 Cumulative 307.4 hours Start 2022.04.18 @ 13:49:21 End 2022.04.18 @ 20:22:53 Sessions 1 Manual Loads 0 Difficulty Rogue Special Mode None Game No. 253 Rogue 253 Adventurer 0 Explorer 0 Win Type - Total 0 Types 0/0/0/0/0/0/0/0/0 Lore% 56 Gallery% 60 Achievement% 44 Wizard Run 0 Options --------- ASCII 0 Keyboard 0 Movement Mouse Keybinds 0 Fullscreen 1 Font 16/SmallcapsGlow Map View 75x55 Tactical HUD 1 Map Filters NONE Filters NONE Steam 1 RUN: df915971-0d2f-444f-aea4-1bf8aa1b6722